[Event "Titled Tuesday Blitz June 27 Late 2023"]
[White "Haydon, David L"]
[Black "Sanal, Vahap"]
[WhiteFideId "415405"]
[BlackFideId "6300545"]
[WhiteElo "2819"]
[BlackElo "2970"]
[Result "1-0"]
[Round "10"]
[TimeControl "180+2"]
[Date "2023.06.27"]
[WhiteClock "0:00:59"]
[BlackClock "0:00:00"]
[Board "14"]

1. d4 {[%clk 0:03:00]}  d6 {[%clk 0:02:59]} 2. Nf3 {[%clk 0:02:59]}  c5 {[%clk 0:02:58]} 3. c3 {[%clk 0:02:59]}  Nf6 {[%clk 0:02:56]} 4. g3 {[%clk 0:02:59]}  Nc6 {[%clk 0:02:55]} 5. Bg2 {[%clk 0:02:59]}  cxd4 {[%clk 0:02:54]} 6. cxd4 {[%clk 0:02:59]}  d5 {[%clk 0:02:55]} 7. O-O {[%clk 0:02:59]}  Bf5 {[%clk 0:02:55]} 8. Nc3 {[%clk 0:03:00]}  e6 {[%clk 0:02:55]} 9. Ne5 {[%clk 0:03:00]}  Bd6 {[%clk 0:02:53]} 10. Bf4 {[%clk 0:02:57]}  O-O {[%clk 0:02:53]} 11. Nxc6 {[%clk 0:02:57]}  bxc6 {[%clk 0:02:53]} 12. Bxd6 {[%clk 0:02:58]}  Qxd6 {[%clk 0:02:54]} 13. Na4 {[%clk 0:02:57]}  Rab8 {[%clk 0:02:48]} 14. Rc1 {[%clk 0:02:54]}  Rfc8 {[%clk 0:02:49]} 15. b3 {[%clk 0:02:51]}  Nd7 {[%clk 0:02:49]} 16. Qd2 {[%clk 0:02:45]}  h6 {[%clk 0:02:37]} 17. Nc5 {[%clk 0:02:36]}  Nxc5 {[%clk 0:02:30]} 18. Rxc5 {[%clk 0:02:35]}  e5 {[%clk 0:02:30]} 19. e3 {[%clk 0:02:31]}  e4 {[%clk 0:02:29]} 20. Rfc1 {[%clk 0:02:31]}  Bd7 {[%clk 0:02:29]} 21. b4 {[%clk 0:02:28]}  Rf8 {[%clk 0:02:28]} 22. a3 {[%clk 0:02:23]}  f5 {[%clk 0:02:29]} 23. Ra5 {[%clk 0:02:22]}  Rb7 {[%clk 0:02:22]} 24. Qc3 {[%clk 0:02:21]}  g5 {[%clk 0:02:20]} 25. Qc5 {[%clk 0:02:19]}  Qe6 {[%clk 0:02:21]} 26. Rxa7 {[%clk 0:02:15]}  Rxa7 {[%clk 0:02:21]} 27. Qxa7 {[%clk 0:02:16]}  f4 {[%clk 0:02:22]} 28. Qc7 {[%clk 0:02:07]}  f3 {[%clk 0:02:07]} 29. Bf1 {[%clk 0:02:04]}  Rc8 {[%clk 0:02:04]} 30. Qb7 {[%clk 0:02:02]}  h5 {[%clk 0:01:57]} 31. b5 {[%clk 0:01:56]}  h4 {[%clk 0:01:55]} 32. bxc6 {[%clk 0:01:49]}  Bxc6 {[%clk 0:01:50]} 33. Qb6 {[%clk 0:01:48]}  hxg3 {[%clk 0:01:49]} 34. hxg3 {[%clk 0:01:47]}  Kg7 {[%clk 0:01:43]} 35. a4 {[%clk 0:01:44]}  Qh6 {[%clk 0:01:18]} 36. Qa7+ {[%clk 0:01:35]}  Kg8 {[%clk 0:00:52]} 37. Qe7 {[%clk 0:01:27]}  Re8 {[%clk 0:00:44]} 38. Qc5 {[%clk 0:01:21]}  Bb7 {[%clk 0:00:20]} 39. Qb5 {[%clk 0:01:15]}  Re7 {[%clk 0:00:17]} 40. a5 {[%clk 0:01:07]}  Qh5 {[%clk 0:00:18]} 41. Qb6 {[%clk 0:01:01]}  Kf7 {[%clk 0:00:08]} 42. Rc7 {[%clk 0:01:00]}  Ba8 {[%clk 0:00:01]} 43. Rxe7+ {[%clk 0:00:59]}  Kxe7 {[%clk 0:00:00]} 44. Qa7+ {[%clk 0:00:59]} 1-0


[Site "https://www.chess.com"]

[Event "Titled Tuesday Blitz June 27 Late 2023"]
[White "Sjugirov, Sanan"]
[Black "Fernandez, Daniel"]
[WhiteFideId "4189302"]
[BlackFideId "2015390"]
[WhiteElo "2942"]
[BlackElo "2749"]
[Result "1-0"]
[Round "10"]
[TimeControl "180+2"]
[Date "2023.06.27"]
[WhiteClock "0:00:08"]
[BlackClock "0:00:00"]
[Board "15"]

1. d4 {[%clk 0:03:00]}  Nf6 {[%clk 0:02:58]} 2. c4 {[%clk 0:03:01]}  e6 {[%clk 0:02:58]} 3. Nc3 {[%clk 0:03:02]}  Bb4 {[%clk 0:02:58]} 4. e3 {[%clk 0:03:02]}  b6 {[%clk 0:02:58]} 5. Ne2 {[%clk 0:03:02]}  Bb7 {[%clk 0:02:57]} 6. a3 {[%clk 0:03:03]}  Be7 {[%clk 0:02:57]} 7. Ng3 {[%clk 0:03:01]}  h5 {[%clk 0:02:56]} 8. h3 {[%clk 0:02:54]}  h4 {[%clk 0:02:55]} 9. Nge2 {[%clk 0:02:54]}  d5 {[%clk 0:02:54]} 10. Nf4 {[%clk 0:02:52]}  dxc4 {[%clk 0:02:48]} 11. Bxc4 {[%clk 0:02:35]}  g5 {[%clk 0:02:47]} 12. Nd3 {[%clk 0:02:34]}  Nbd7 {[%clk 0:02:24]} 13. f3 {[%clk 0:02:27]}  c5 {[%clk 0:02:23]} 14. dxc5 {[%clk 0:02:19]}  Nxc5 {[%clk 0:02:23]} 15. Nxc5 {[%clk 0:02:19]}  Qxd1+ {[%clk 0:02:12]} 16. Kxd1 {[%clk 0:02:16]}  Bxc5 {[%clk 0:02:09]} 17. e4 {[%clk 0:02:16]}  Nh5 {[%clk 0:01:41]} 18. Bxg5 {[%clk 0:02:01]}  Rg8 {[%clk 0:01:40]} 19. Bxh4 {[%clk 0:01:36]}  Rxg2 {[%clk 0:01:36]} 20. Kc1 {[%clk 0:01:35]}  Be7 {[%clk 0:01:19]} 21. Bf1 {[%clk 0:01:25]}  Rg8 {[%clk 0:01:13]} 22. Bxe7 {[%clk 0:01:15]}  Kxe7 {[%clk 0:01:13]} 23. Kc2 {[%clk 0:01:16]}  Nf4 {[%clk 0:01:08]} 24. Rh2 {[%clk 0:01:13]}  Rg3 {[%clk 0:01:07]} 25. Rf2 {[%clk 0:01:12]}  Nxh3 {[%clk 0:01:00]} 26. Bxh3 {[%clk 0:01:12]}  Rxh3 {[%clk 0:01:01]} 27. Rg1 {[%clk 0:01:04]}  Rah8 {[%clk 0:00:59]} 28. Kd3 {[%clk 0:01:01]}  Rh2 {[%clk 0:00:56]} 29. Rgg2 {[%clk 0:00:55]}  Rxg2 {[%clk 0:00:55]} 30. Rxg2 {[%clk 0:00:56]}  Kf6 {[%clk 0:00:53]} 31. Ke3 {[%clk 0:00:56]}  Bc6 {[%clk 0:00:52]} 32. Ne2 {[%clk 0:00:55]}  e5 {[%clk 0:00:51]} 33. Nc3 {[%clk 0:00:49]}  Ke6 {[%clk 0:00:44]} 34. Rc2 {[%clk 0:00:41]}  a5 {[%clk 0:00:31]} 35. Ne2 {[%clk 0:00:37]}  Bb5 {[%clk 0:00:28]} 36. Nc3 {[%clk 0:00:32]}  Bc6 {[%clk 0:00:23]} 37. b4 {[%clk 0:00:24]}  axb4 {[%clk 0:00:23]} 38. axb4 {[%clk 0:00:25]}  Ra8 {[%clk 0:00:12]} 39. Kd3 {[%clk 0:00:19]}  Ra3 {[%clk 0:00:10]} 40. Kc4 {[%clk 0:00:18]}  Kd6 {[%clk 0:00:08]} 41. Rh2 {[%clk 0:00:17]}  Ra1 {[%clk 0:00:05]} 42. Rh6+ {[%clk 0:00:16]}  Kc7 {[%clk 0:00:05]} 43. Nb5+ {[%clk 0:00:11]}  Bxb5+ {[%clk 0:00:02]} 44. Kxb5 {[%clk 0:00:12]}  Rf1 {[%clk 0:00:03]} 45. Rf6 {[%clk 0:00:12]}  Kd7 {[%clk 0:00:02]} 46. Rxf7+ {[%clk 0:00:12]}  Ke6 {[%clk 0:00:03]} 47. Rf8 {[%clk 0:00:09]}  Rb1 {[%clk 0:00:02]} 48. Rb8 {[%clk 0:00:09]}  Rb3 {[%clk 0:00:02]} 49. Rxb6+ {[%clk 0:00:09]}  Ke7 {[%clk 0:00:02]} 50. Kc4 {[%clk 0:00:08]}  Rxf3 {[%clk 0:00:02]} 51. Kd5 {[%clk 0:00:09]}  Kd7 {[%clk 0:00:01]} 52. Kxe5 {[%clk 0:00:08]}  Kc7 {[%clk 0:00:01]} 53. Rd6 {[%clk 0:00:08]}  Rb3 {[%clk 0:00:01]} 54. Rd4 {[%clk 0:00:08]}  Rb1 {[%clk 0:00:00]} 55. Ke6 {[%clk 0:00:08]} 1-0


[Site "https://www.chess.com"]

[Event "Titled Tuesday Blitz June 27 Late 2023"]
[White "Goltsev, Dmitry"]
[Black "Ter-Sahakyan, Samvel"]
[WhiteFideId "24176710"]
[BlackFideId "13302531"]
[WhiteElo "2711"]
[BlackElo "2887"]
[Result "0-1"]
[Round "10"]
[TimeControl "180+2"]
[Date "2023.06.27"]
[WhiteClock "0:00:00"]
[BlackClock "0:00:10"]
[Board "17"]

1. e4 {[%clk 0:02:59]}  g6 {[%clk 0:02:59]} 2. d4 {[%clk 0:02:59]}  Bg7 {[%clk 0:02:59]} 3. c3 {[%clk 0:03:00]}  d6 {[%clk 0:02:58]} 4. Nf3 {[%clk 0:03:00]}  Nf6 {[%clk 0:02:58]} 5. Qc2 {[%clk 0:02:59]}  O-O {[%clk 0:02:58]} 6. Bd3 {[%clk 0:03:00]}  Nc6 {[%clk 0:02:58]} 7. Bg5 {[%clk 0:02:59]}  e5 {[%clk 0:02:57]} 8. dxe5 {[%clk 0:02:57]}  Nxe5 {[%clk 0:02:55]} 9. Nxe5 {[%clk 0:02:57]}  dxe5 {[%clk 0:02:55]} 10. Nd2 {[%clk 0:02:57]}  h6 {[%clk 0:02:52]} 11. Bh4 {[%clk 0:02:56]}  g5 {[%clk 0:02:53]} 12. Bg3 {[%clk 0:02:56]}  Nh5 {[%clk 0:02:53]} 13. O-O-O {[%clk 0:02:56]}  Qe7 {[%clk 0:02:49]} 14. Nc4 {[%clk 0:02:53]}  Nf4 {[%clk 0:02:37]} 15. Bxf4 {[%clk 0:02:43]}  exf4 {[%clk 0:02:36]} 16. e5 {[%clk 0:02:08]}  b5 {[%clk 0:02:33]} 17. Be4 {[%clk 0:02:00]}  Rb8 {[%clk 0:02:27]} 18. Na5 {[%clk 0:01:47]}  Bd7 {[%clk 0:02:18]} 19. Bf5 {[%clk 0:01:32]}  Be8 {[%clk 0:02:00]} 20. Rhe1 {[%clk 0:01:29]}  Rb6 {[%clk 0:01:59]} 21. Rd5 {[%clk 0:01:23]}  b4 {[%clk 0:01:45]} 22. c4 {[%clk 0:01:20]}  c6 {[%clk 0:01:37]} 23. Rd6 {[%clk 0:01:17]}  c5 {[%clk 0:01:36]} 24. Rd5 {[%clk 0:00:52]}  Ra6 {[%clk 0:01:32]} 25. Nb3 {[%clk 0:00:52]}  Rxa2 {[%clk 0:01:06]} 26. e6 {[%clk 0:00:20]}  Kh8 {[%clk 0:01:06]} 27. Re2 {[%clk 0:00:09]}  Rxb2 {[%clk 0:01:02]} 28. Qxb2 {[%clk 0:00:09]}  Bxb2+ {[%clk 0:01:01]} 29. Kxb2 {[%clk 0:00:08]}  Qf6+ {[%clk 0:00:51]} 30. Ka2 {[%clk 0:00:09]}  Ba4 {[%clk 0:00:45]} 31. e7 {[%clk 0:00:08]}  Re8 {[%clk 0:00:42]} 32. Nxc5 {[%clk 0:00:04]}  b3+ {[%clk 0:00:28]} 33. Ka3 {[%clk 0:00:03]}  Bc6 {[%clk 0:00:15]} 34. Nd7 {[%clk 0:00:00]}  Qa1+ {[%clk 0:00:10]} 0-1


[Site "https://www.chess.com"]

[Event "Titled Tuesday Blitz June 27 Late 2023"]
[White "Ibarra Jerez, Jose Carlos"]
[Black "Mirzoev, Azer"]
[WhiteFideId "2226332"]
[BlackFideId "13400304"]
[WhiteElo "2876"]
[BlackElo "2689"]
[Result "1-0"]
[Round "10"]
[TimeControl "180+2"]
[Date "2023.06.27"]
[WhiteClock "0:00:51"]
[BlackClock "0:00:28"]
[Board "19"]

1. e4 {[%clk 0:03:00]}  c6 {[%clk 0:02:59]} 2. Nf3 {[%clk 0:03:01]}  d5 {[%clk 0:03:00]} 3. d3 {[%clk 0:03:01]}  Nf6 {[%clk 0:02:56]} 4. Qe2 {[%clk 0:03:00]}  Bg4 {[%clk 0:02:34]} 5. Nbd2 {[%clk 0:03:00]}  e6 {[%clk 0:02:33]} 6. h3 {[%clk 0:02:58]}  Bh5 {[%clk 0:02:32]} 7. g4 {[%clk 0:02:58]}  Bg6 {[%clk 0:02:33]} 8. Ne5 {[%clk 0:02:56]}  Nbd7 {[%clk 0:02:31]} 9. Nxg6 {[%clk 0:02:55]}  hxg6 {[%clk 0:02:30]} 10. e5 {[%clk 0:02:51]}  Ng8 {[%clk 0:02:23]} 11. f4 {[%clk 0:02:49]}  Qh4+ {[%clk 0:02:04]} 12. Kd1 {[%clk 0:02:48]}  Bc5 {[%clk 0:02:00]} 13. Nf3 {[%clk 0:02:42]}  Qd8 {[%clk 0:01:52]} 14. d4 {[%clk 0:02:24]}  Bb6 {[%clk 0:01:51]} 15. c3 {[%clk 0:02:24]}  Ne7 {[%clk 0:01:51]} 16. Qd3 {[%clk 0:02:20]}  c5 {[%clk 0:01:49]} 17. Be3 {[%clk 0:02:13]}  Qc7 {[%clk 0:01:49]} 18. Rc1 {[%clk 0:02:12]}  Nc6 {[%clk 0:01:47]} 19. f5 {[%clk 0:02:06]}  gxf5 {[%clk 0:01:47]} 20. gxf5 {[%clk 0:02:06]}  O-O-O {[%clk 0:01:46]} 21. Ng5 {[%clk 0:02:04]}  Rdf8 {[%clk 0:01:20]} 22. fxe6 {[%clk 0:01:59]}  Ndb8 {[%clk 0:01:07]} 23. exf7 {[%clk 0:01:55]}  Rh4 {[%clk 0:01:05]} 24. Be2 {[%clk 0:01:24]}  cxd4 {[%clk 0:00:58]} 25. cxd4 {[%clk 0:01:24]}  Rxf7 {[%clk 0:00:58]} 26. Nxf7 {[%clk 0:01:18]}  Qxf7 {[%clk 0:00:57]} 27. Bg4+ {[%clk 0:01:18]}  Kc7 {[%clk 0:00:55]} 28. Rf1 {[%clk 0:01:17]}  Qe7 {[%clk 0:00:50]} 29. Qf5 {[%clk 0:01:15]}  Ba5 {[%clk 0:00:39]} 30. Qf7 {[%clk 0:00:52]}  Kb6 {[%clk 0:00:35]} 31. Qxe7 {[%clk 0:00:50]}  Nxe7 {[%clk 0:00:28]} 32. Bg5 {[%clk 0:00:51]} 1-0


[Site "https://www.chess.com"]

[Event "Titled Tuesday Blitz June 27 Late 2023"]
[White "Korchmar, Vasiliy"]
[Black "Hansen, Eric"]
[WhiteFideId "24131750"]
[BlackFideId "2606771"]
[WhiteElo "2707"]
[BlackElo "2871"]
[Result "1/2-1/2"]
[Round "10"]
[TimeControl "180+2"]
[Date "2023.06.27"]
[WhiteClock "0:00:02"]
[BlackClock "0:00:09"]
[Board "20"]

1. e4 {[%clk 0:03:00]}  c5 {[%clk 0:02:58]} 2. d4 {[%clk 0:03:01]}  cxd4 {[%clk 0:02:58]} 3. Qxd4 {[%clk 0:03:02]}  Nc6 {[%clk 0:02:58]} 4. Qd3 {[%clk 0:03:02]}  Nf6 {[%clk 0:02:59]} 5. Nc3 {[%clk 0:03:03]}  e6 {[%clk 0:02:59]} 6. Bf4 {[%clk 0:03:01]}  d5 {[%clk 0:02:58]} 7. exd5 {[%clk 0:03:00]}  Nxd5 {[%clk 0:02:58]} 8. Nxd5 {[%clk 0:02:57]}  Qxd5 {[%clk 0:02:57]} 9. Qxd5 {[%clk 0:02:56]}  exd5 {[%clk 0:02:58]} 10. O-O-O {[%clk 0:02:56]}  Be6 {[%clk 0:02:58]} 11. Nf3 {[%clk 0:02:54]}  h6 {[%clk 0:02:58]} 12. Nd4 {[%clk 0:02:47]}  Nxd4 {[%clk 0:02:45]} 13. Rxd4 {[%clk 0:02:48]}  Bc5 {[%clk 0:02:44]} 14. Rd2 {[%clk 0:02:39]}  Ke7 {[%clk 0:02:41]} 15. Bb5 {[%clk 0:02:33]}  Rhd8 {[%clk 0:02:41]} 16. Ba4 {[%clk 0:02:27]}  d4 {[%clk 0:02:39]} 17. Re1 {[%clk 0:02:23]}  Bb4 {[%clk 0:02:37]} 18. Rxe6+ {[%clk 0:02:08]}  fxe6 {[%clk 0:02:25]} 19. Re2 {[%clk 0:02:06]}  d3 {[%clk 0:02:15]} 20. cxd3 {[%clk 0:02:05]}  Rac8+ {[%clk 0:02:15]} 21. Kb1 {[%clk 0:02:04]}  Rxd3 {[%clk 0:02:16]} 22. Bb3 {[%clk 0:02:05]}  Rc6 {[%clk 0:02:16]} 23. Be5 {[%clk 0:01:51]}  Rd2 {[%clk 0:02:12]} 24. Re4 {[%clk 0:01:44]}  Rxf2 {[%clk 0:02:11]} 25. a3 {[%clk 0:01:34]}  Bd2 {[%clk 0:01:59]} 26. g4 {[%clk 0:01:05]}  g5 {[%clk 0:01:56]} 27. Ka2 {[%clk 0:00:48]}  Bf4 {[%clk 0:01:44]} 28. Bd4 {[%clk 0:00:42]}  Rxh2 {[%clk 0:01:44]} 29. Bd5 {[%clk 0:00:39]}  a5 {[%clk 0:00:31]} 30. Bxc6 {[%clk 0:00:32]}  bxc6 {[%clk 0:00:31]} 31. Bc3 {[%clk 0:00:33]}  Kd6 {[%clk 0:00:30]} 32. Bxa5 {[%clk 0:00:31]}  Kd5 {[%clk 0:00:28]} 33. Re1 {[%clk 0:00:27]}  Be5 {[%clk 0:00:22]} 34. Rxe5+ {[%clk 0:00:27]}  Kd6 {[%clk 0:00:08]} 35. Re4 {[%clk 0:00:27]}  Kd5 {[%clk 0:00:07]} 36. Re5+ {[%clk 0:00:20]}  Kd6 {[%clk 0:00:07]} 37. Re3 {[%clk 0:00:18]}  c5 {[%clk 0:00:05]} 38. Bc3 {[%clk 0:00:13]}  Rg2 {[%clk 0:00:05]} 39. Re4 {[%clk 0:00:13]}  Kd5 {[%clk 0:00:05]} 40. Re5+ {[%clk 0:00:13]}  Kd6 {[%clk 0:00:06]} 41. Re4 {[%clk 0:00:13]}  Kd5 {[%clk 0:00:06]} 42. Ra4 {[%clk 0:00:11]}  e5 {[%clk 0:00:07]} 43. Ra6 {[%clk 0:00:09]}  Rxg4 {[%clk 0:00:06]} 44. Rxh6 {[%clk 0:00:08]}  Rh4 {[%clk 0:00:07]} 45. Rg6 {[%clk 0:00:08]}  Rg4 {[%clk 0:00:04]} 46. Kb3 {[%clk 0:00:06]}  Rg2 {[%clk 0:00:03]} 47. a4 {[%clk 0:00:06]}  Rg1 {[%clk 0:00:03]} 48. a5 {[%clk 0:00:06]}  g4 {[%clk 0:00:04]} 49. a6 {[%clk 0:00:06]}  Ra1 {[%clk 0:00:05]} 50. Rxg4 {[%clk 0:00:05]}  Rxa6 {[%clk 0:00:04]} 51. Rg5 {[%clk 0:00:05]}  Re6 {[%clk 0:00:05]} 52. Kc2 {[%clk 0:00:06]}  Ke4 {[%clk 0:00:05]} 53. Rg4+ {[%clk 0:00:05]}  Kf3 {[%clk 0:00:04]} 54. Rc4 {[%clk 0:00:05]}  e4 {[%clk 0:00:04]} 55. Rxc5 {[%clk 0:00:05]}  e3 {[%clk 0:00:05]} 56. Rf5+ {[%clk 0:00:03]}  Ke4 {[%clk 0:00:06]} 57. Rh5 {[%clk 0:00:03]}  Kf3 {[%clk 0:00:05]} 58. Rh3+ {[%clk 0:00:03]}  Kf2 {[%clk 0:00:06]} 59. Rh2+ {[%clk 0:00:03]}  Kf1 {[%clk 0:00:06]} 60. Rh1+ {[%clk 0:00:03]}  Kf2 {[%clk 0:00:06]} 61. Re1 {[%clk 0:00:04]}  e2 {[%clk 0:00:06]} 62. Kd2 {[%clk 0:00:04]}  Rd6+ {[%clk 0:00:06]} 63. Kc2 {[%clk 0:00:04]}  Rc6 {[%clk 0:00:07]} 64. Kd2 {[%clk 0:00:02]}  Rd6+ {[%clk 0:00:07]} 65. Kc1 {[%clk 0:00:02]}  Rc6 {[%clk 0:00:08]} 66. Kd2 {[%clk 0:00:02]}  Rd6+ {[%clk 0:00:09]} 1/2-1/2


[Site "https://www.chess.com"]

[Event "Titled Tuesday Blitz June 27 Late 2023"]
[White "Krzyzanowski, Marcin"]
[Black "Papp, Levente"]
[WhiteFideId "1132199"]
[BlackFideId "751243"]
[WhiteElo "2843"]
[BlackElo "2679"]
[Result "0-1"]
[Round "10"]
[TimeControl "180+2"]
[Date "2023.06.27"]
[WhiteClock "0:00:02"]
[BlackClock "0:00:12"]
[Board "21"]

1. Nf3 {[%clk 0:02:59]}  Nf6 {[%clk 0:02:58]} 2. g3 {[%clk 0:02:57]}  b6 {[%clk 0:02:58]} 3. Bg2 {[%clk 0:02:56]}  Bb7 {[%clk 0:02:59]} 4. O-O {[%clk 0:02:57]}  g6 {[%clk 0:02:59]} 5. c4 {[%clk 0:02:57]}  c5 {[%clk 0:02:59]} 6. Nc3 {[%clk 0:02:57]}  Bg7 {[%clk 0:02:59]} 7. d4 {[%clk 0:02:54]}  cxd4 {[%clk 0:02:59]} 8. Qxd4 {[%clk 0:02:52]}  O-O {[%clk 0:02:55]} 9. Rd1 {[%clk 0:02:48]}  Na6 {[%clk 0:02:50]} 10. Qh4 {[%clk 0:02:46]}  Rc8 {[%clk 0:02:47]} 11. Bh6 {[%clk 0:02:34]}  Bxh6 {[%clk 0:02:38]} 12. Qxh6 {[%clk 0:02:35]}  Bxf3 {[%clk 0:02:39]} 13. exf3 {[%clk 0:02:32]}  Nb4 {[%clk 0:02:16]} 14. b3 {[%clk 0:02:24]}  d6 {[%clk 0:02:11]} 15. Rd2 {[%clk 0:02:20]}  a6 {[%clk 0:02:02]} 16. a4 {[%clk 0:02:16]}  Qc7 {[%clk 0:01:53]} 17. Rad1 {[%clk 0:02:12]}  Qc5 {[%clk 0:01:50]} 18. h4 {[%clk 0:02:06]}  Qe5 {[%clk 0:01:45]} 19. Qe3 {[%clk 0:01:59]}  Qxe3 {[%clk 0:01:29]} 20. fxe3 {[%clk 0:02:00]}  Nd7 {[%clk 0:01:28]} 21. Bh3 {[%clk 0:01:50]}  f5 {[%clk 0:01:24]} 22. e4 {[%clk 0:01:42]}  Nc5 {[%clk 0:01:18]} 23. exf5 {[%clk 0:01:42]}  gxf5 {[%clk 0:01:17]} 24. Re2 {[%clk 0:01:39]}  Rf7 {[%clk 0:00:50]} 25. Nd5 {[%clk 0:01:35]}  Nxd5 {[%clk 0:00:45]} 26. Rxd5 {[%clk 0:01:36]}  Rcf8 {[%clk 0:00:39]} 27. g4 {[%clk 0:01:03]}  Nxb3 {[%clk 0:00:28]} 28. gxf5 {[%clk 0:00:58]}  Nc5 {[%clk 0:00:26]} 29. Ra2 {[%clk 0:00:55]}  Rg7+ {[%clk 0:00:22]} 30. Kf2 {[%clk 0:00:54]}  a5 {[%clk 0:00:19]} 31. Bg4 {[%clk 0:00:51]}  Kf7 {[%clk 0:00:18]} 32. Ke3 {[%clk 0:00:51]}  Rh8 {[%clk 0:00:17]} 33. h5 {[%clk 0:00:46]}  Kf6 {[%clk 0:00:15]} 34. Ra1 {[%clk 0:00:45]}  Rhg8 {[%clk 0:00:15]} 35. Rdd1 {[%clk 0:00:42]}  Rxg4 {[%clk 0:00:15]} 36. fxg4 {[%clk 0:00:42]}  Rxg4 {[%clk 0:00:16]} 37. Rdb1 {[%clk 0:00:40]}  Nd7 {[%clk 0:00:11]} 38. Rg1 {[%clk 0:00:36]}  Rxc4 {[%clk 0:00:11]} 39. Rg8 {[%clk 0:00:36]}  Rc3+ {[%clk 0:00:11]} 40. Kd2 {[%clk 0:00:36]}  Rh3 {[%clk 0:00:11]} 41. Rd8 {[%clk 0:00:33]}  Ne5 {[%clk 0:00:10]} 42. Rc1 {[%clk 0:00:24]}  Rxh5 {[%clk 0:00:09]} 43. Rb8 {[%clk 0:00:18]}  Rh2+ {[%clk 0:00:09]} 44. Ke3 {[%clk 0:00:18]}  Rb2 {[%clk 0:00:09]} 45. Rf8+ {[%clk 0:00:14]}  Kg7 {[%clk 0:00:10]} 46. Rb8 {[%clk 0:00:14]}  Kf6 {[%clk 0:00:10]} 47. Rf8+ {[%clk 0:00:13]}  Kg7 {[%clk 0:00:10]} 48. Re8 {[%clk 0:00:12]}  Rb3+ {[%clk 0:00:11]} 49. Kd4 {[%clk 0:00:12]}  Kf7 {[%clk 0:00:10]} 50. Rh8 {[%clk 0:00:12]}  Rb4+ {[%clk 0:00:09]} 51. Kd5 {[%clk 0:00:11]}  Kg7 {[%clk 0:00:08]} 52. Rb8 {[%clk 0:00:10]}  Kf6 {[%clk 0:00:07]} 53. Rf8+ {[%clk 0:00:09]}  Kg7 {[%clk 0:00:07]} 54. Rb8 {[%clk 0:00:08]}  Rxa4 {[%clk 0:00:07]} 55. Rg1+ {[%clk 0:00:07]}  Kf7 {[%clk 0:00:07]} 56. Rh8 {[%clk 0:00:06]}  Rh4 {[%clk 0:00:06]} 57. Rgg8 {[%clk 0:00:06]}  Nd7 {[%clk 0:00:06]} 58. Rd8 {[%clk 0:00:06]}  Nf6+ {[%clk 0:00:06]} 59. Kc6 {[%clk 0:00:05]}  a4 {[%clk 0:00:06]} 60. Ra8 {[%clk 0:00:05]}  Rc4+ {[%clk 0:00:07]} 61. Kb5 {[%clk 0:00:05]}  Rc5+ {[%clk 0:00:07]} 62. Kxb6 {[%clk 0:00:05]}  Rxf5 {[%clk 0:00:08]} 63. Rxa4 {[%clk 0:00:05]}  h5 {[%clk 0:00:09]} 64. Rc4 {[%clk 0:00:03]}  d5 {[%clk 0:00:09]} 65. Rcc8 {[%clk 0:00:01]}  d4 {[%clk 0:00:09]} 66. Rcd8 {[%clk 0:00:02]}  e5 {[%clk 0:00:09]} 67. Rhf8+ {[%clk 0:00:02]}  Kg6 {[%clk 0:00:09]} 68. Rd6 {[%clk 0:00:03]}  Kg5 {[%clk 0:00:09]} 69. Rf7 {[%clk 0:00:03]}  h4 {[%clk 0:00:09]} 70. Rg7+ {[%clk 0:00:03]}  Kf4 {[%clk 0:00:09]} 71. Kc6 {[%clk 0:00:03]}  Ne4 {[%clk 0:00:10]} 72. Rh6 {[%clk 0:00:02]}  Ke3 {[%clk 0:00:08]} 73. Rxh4 {[%clk 0:00:03]}  d3 {[%clk 0:00:09]} 74. Rgg4 {[%clk 0:00:02]}  Nf6 {[%clk 0:00:08]} 75. Rg3+ {[%clk 0:00:02]}  Rf3 {[%clk 0:00:08]} 76. Rxf3+ {[%clk 0:00:02]}  Kxf3 {[%clk 0:00:08]} 77. Rh6 {[%clk 0:00:02]}  Ng4 {[%clk 0:00:08]} 78. Rh3+ {[%clk 0:00:02]}  Ke2 {[%clk 0:00:08]} 79. Rg3 {[%clk 0:00:02]}  d2 {[%clk 0:00:08]} 80. Rxg4 {[%clk 0:00:01]}  d1=Q {[%clk 0:00:08]} 81. Re4+ {[%clk 0:00:02]}  Kf3 {[%clk 0:00:08]} 82. Rxe5 {[%clk 0:00:03]}  Kf4 {[%clk 0:00:09]} 83. Rd5 {[%clk 0:00:03]}  Qa4+ {[%clk 0:00:09]} 84. Kc5 {[%clk 0:00:03]}  Ke4 {[%clk 0:00:09]} 85. Rd6 {[%clk 0:00:03]}  Qa3+ {[%clk 0:00:09]} 86. Kc6 {[%clk 0:00:03]}  Ke5 {[%clk 0:00:10]} 87. Rd5+ {[%clk 0:00:03]}  Ke6 {[%clk 0:00:10]} 88. Rc5 {[%clk 0:00:04]}  Qa6+ {[%clk 0:00:11]} 89. Kc7 {[%clk 0:00:04]}  Qd6+ {[%clk 0:00:11]} 90. Kb7 {[%clk 0:00:02]}  Qxc5 {[%clk 0:00:12]} 0-1


[Site "https://www.chess.com"]